[Event "FRA-ch Teams Top 16-Bas 2022"]
[Site "Chartres"]
[Date "2022.06.18"]
[Round "10.4"]
[White "Buscara, Sevan"]
[Black "Flom, Gabriel"]
[Result "1-0"]
[ECO "A48"]
[WhiteElo "2385"]
[BlackElo "2442"]
[Annotator "TA"]
[PlyCount "157"]
[EventDate "2022.06.16"]
[EventType "team-tourn"]
[EventCountry "FRA"]
[SourceTitle "playchess.com"]
[Source "ChessBase"]
[SourceQuality "1"]
[TimeControl "40/5400+30:1800+30"]

{[%evp 11,157,0,0,0,1,4,0,-23,-26,-17,-7,-105,47,0,50,52,97,93,95,96,103,103,157,156,140,123,225,220,201,118,145,88,89,0,28,20,20,0,85,89,83,67,118,118,119,116,114,110,115,104,118,112,93,99,134,60,80,81,108,107,94,83,148,34,34,34,41,23,45,0,13,0,43,43,45,45,48,43,95,102,92,46,92,43,43,0,7,8,8,0,8,0,0,0,0,0,0,0,8,0,0,0,0,0,121,121,121,121,121,121,135,143,177,177,4079,3766,1295,1137,29958,29958,29959,29960,29955,29953,10785,8630,29946,29955,29967,29968,29966,29969,29955,29961,29979,29980,29982,29983,29983,29984,29984,29985,29985,29984,29984,29985,29986,29982]} 1. d4 {[%emt 0:00:10]} Nf6 {[%emt 0:00:32]} 2. Nf3 {[%emt 0:00:21]} g6 {[%emt 0:01:36]} 3. Bf4 {[%emt 0:00:06]} Bg7 {[%emt 0:00:24]} 4. e3 {[%emt 0:00:08]} O-O {[%emt 0:00:04]} 5. Be2 {[%emt 0:00:23]} c5 {[%emt 0:00:56]} 6. c3 {[%emt 0:00:39]} Qb6 {[%emt 0:01:16]} 7. Qb3 {[%emt 0:02:33] A48: 1 d4 Nf6 2 Nf3 g6: Torre, London and Colle Systems.} d6 {[%emt 0:02:57]} 8. Nbd2 {[%emt 0:00:42]} Be6 {[%emt 0:00:04]} 9. Bc4 {[%emt 0:01:32] The position is equal.} Bxc4 {[%emt 0:11:14]} 10. Nxc4 {[%emt 0:00:17]} Qa6 {[%emt 0:07:29] [#]} 11. dxc5 $146 {[%emt 0:04:42]} (11. O-O $11) ({Predecessor:} 11. O-O cxd4 12. cxd4 Nc6 13. h3 b5 14. Ncd2 Qb6 15. Rfc1 Na5 16. Qd3 Rac8 17. Bg5 {½-½ (29) Hoang,T (2448)-Lagno,K (2556) Khanty-Mansiysk 2018}) 11... dxc5 $2 {[%emt 0:00:11]} (11... Nbd7 $17 12. a4 (12. cxd6 $2 Nc5 $19) 12... d5) 12. O-O {[%emt 0:02:51][%cal Bh1f1,Bf1d1,Bd1d7][%mdl 32]} (12. a4 $1 $14) 12... Nc6 {[%emt 0:00:35]} (12... b5 $11 13. Na3 b4 14. cxb4 cxb4) 13. a4 $1 $14 {[%emt 0:06:28][%cal Ba2a4,Ba4b5][%mdl 32]} Nh5 {[%emt 0:00:04]} 14. Qb5 {[%emt 0:01:53]} Nxf4 {[%emt 0:00:05]} 15. exf4 {[%emt 0:00:35]} Rfc8 {[%emt 0:03:27]} 16. Rfd1 {[%emt 0:06:57]} ({Avoid the trap} 16. Qxc5 $2 Nd4 $1 {[%mdl 512]} 17. Qxe7 Nxf3+ 18. gxf3 Rxc4 $19) 16... Qxb5 {[%emt 0:05:17]} (16... Rd8 $142) 17. axb5 $16 {[%emt 0:00:06]} Nd8 {[%emt 0:00:01]} 18. Rd7 {[%emt 0:07:17]} Bf6 {[%emt 0:00:53]} (18... Kf8 $16 {was called for.}) 19. g4 $18 {[%emt 0:03:12]} Kf8 {[%emt 0:00:03]} 20. g5 {[%emt 0:00:56]} ({Better is} 20. f5 $1 $18) 20... Bg7 {[%emt 0:00:02]} 21. Re1 {[%emt 0:00:27] 0x0.0022293ea578dp-1022s more active pieces.} (21. Nh4 $142 $1) 21... Ne6 $16 {[%emt 0:00:08]} 22. Na5 {[%emt 0:17:00]} ({White should play} 22. f5 $16 gxf5 23. Nh4 (23. Rxb7 Rc7 $11)) 22... b6 {[%emt 0:05:31]} 23. Nc6 {[%emt 0:03:23][%cal Ba5c6,Bc6e7,Be7f5][%mdl 32]} a6 $1 {[%emt 0:00:59]} 24. Nxe7 {[%emt 0:02:22] Pair of Knights!} Rc7 {[%emt 0:01:17]} (24... Rd8 $11 25. Rb7 Rab8 26. Rxb8 Rxb8) 25. Rxc7 {[%emt 0:02:48]} Nxc7 {[%emt 0:00:01]} 26. bxa6 {[%emt 0:04:47] Threatens to win with f5.} Rxa6 {[%emt 0:00:01]} (26... Ne6 $14) 27. f5 {[%emt 0:08:19]} gxf5 {[%emt 0:00:02]} 28. Nxf5 {[%emt 0:00:32] Re7 is the strong threat.} Ne6 {[%emt 0:00:02]} 29. Rd1 {[%emt 0:01:11]} Ra4 {[%emt 0:02:16]} 30. Rd6 {[%emt 0:09:47]} Rf4 {[%emt 0:00:05][%csl LRf3,LRf5]} 31. Nxg7 {[%emt 0:03:02]} Kxg7 {[%emt 0:00:06][%mdl 4096] Endgame KRN-KRN} 32. Kg2 {[%emt 0:00:48]} b5 {[%emt 0:00:30][%cal Oe6g5]} 33. Rb6 {[%emt 0:02:38]} (33. Kg3 $1 $16 {[%cal Od6e6] aiming for Rxe6!} Re4 34. h4) 33... b4 {[%emt 0:00:26]} 34. cxb4 {[%emt 0:00:30]} cxb4 {[%emt 0:00:01]} 35. Kg3 {[%emt 0:01:00][%cal Ob6e6] Black must now prevent Rxe6!} Re4 {[%emt 0:00:12]} 36. Nh4 {[%emt 0:02:33]} h5 {[%emt 0:07:58]} (36... Nd4 $142) 37. f3 {[%emt 0:02:25]} (37. gxh6+ $1 $16 Kxh6 38. f3) 37... Re5 $14 {[%emt 0:05:08]} 38. Rxb4 {[%emt 0:02:47]} Rxg5+ {[%emt 0:00:01]} 39. Kf2 {[%emt 0:00:23]} Rc5 {[%emt 0:00:02]} 40. Kg3 {[%emt 0:01:14]} Rg5+ {[%emt 0:01:32]} 41. Kf2 {[%emt 0:30:06]} Rc5 {[%emt 0:30:02]} 42. Ng2 {[%emt 0:00:00]} Rc2+ {[%emt 0:00:00]} 43. Kg3 {[%emt 0:00:00]} Re2 {[%emt 0:00:00]} 44. h4 {[%emt 0:00:00]} Kf6 {[%emt 0:00:00]} (44... Rd2 $14) 45. Nf4 $16 {[%emt 0:00:00]} Nxf4 {[%emt 0:00:00]} 46. Kxf4 {[%emt 0:00:00] KR-KR} (46. Rxf4+ $16 Kg6 47. b4) 46... Kg6 {[%emt 0:00:00]} (46... Rd2 $14 {might be stronger.}) 47. Rb5 {[%emt 0:00:00]} (47. b3 $1 $16) 47... f6 $14 {[%emt 0:00:00]} 48. b4 {[%emt 0:00:00]} Rh2 {[%emt 0:00:00]} 49. Kg3 {[%emt 0:00:00]} Rb2 {[%emt 0:51:30]} 50. Rb8 {[%emt 0:00:00]} Kf5 {[%emt 0:00:00]} 51. Rb5+ {[%emt 0:00:00]} Kg6 $1 {[%emt 0:00:00]} 52. f4 {[%emt 0:00:00]} Rb3+ {[%emt 0:00:00]} 53. Kg2 {[%emt 0:00:00]} Kf7 {[%emt 0:00:00]} 54. Kf2 {[%emt 0:00:00]} Ke6 {[%emt 0:00:00]} 55. Ke2 {[%emt 0:00:00]} f5 {[%emt 0:00:00]} 56. Re5+ {[%emt 0:00:00]} Kf6 {[%emt 0:00:00]} 57. b5 {[%emt 0:00:00][%cal Bb4b5,Bb5b6,Bb6b7][%mdl 32]} Rb4 {[%emt 0:00:00]} (57... Rh3 $1 $11 {remains equal.}) 58. Ke3 $1 $16 {[%emt 0:00:00] Black is on the road to losing.} Rc4 {[%emt 0:00:00]} 59. Re8 {[%emt 0:00:00] And now b6 would win.} Rb4 {[%emt 0:00:00]} 60. Rb8 $1 {[%emt 0:00:00] Hoping for b6.} Ke7 {[%emt 0:00:00] [#]} 61. b6 $1 {[%emt 0:00:00] Threatening mate with b7.} Kd7 {[%emt 0:00:00] [#]} 62. b7 $1 {[%emt 0:00:03] Rf8 would kill now.} Kc7 $2 {[%emt 0:00:00]} (62... Kc6 63. Rf8 Rxb7) 63. Rf8 $18 {[%emt 0:00:21]} Kxb7 {[%emt 0:00:00]} 64. Rxf5 {[%emt 0:00:16]} Kc6 {[%emt 0:00:00]} 65. Rxh5 {[%emt 0:00:18]} Kd6 {[%emt 0:00:00]} 66. Re5 {[%emt 0:00:18]} Rb1 {[%emt 0:00:00]} 67. h5 {[%emt 0:00:59]} Re1+ {[%emt 0:00:00]} 68. Kd4 {[%emt 0:00:17]} Rh1 {[%emt 0:00:00]} 69. Kd3 {[%emt 0:01:13] White mates.} Ra1 {[%emt 0:00:00]} 70. Ke4 {[%emt 0:00:29]} Rh1 {[%emt 0:00:00]} 71. Kf3 {[%emt 0:00:17]} Rg1 {[%emt 0:00:00]} 72. Re2 {[%emt 0:01:55]} Kd7 {[%emt 0:00:00]} 73. Rh2 {[%emt 0:01:27]} Ke6 {[%emt 0:00:00]} 74. h6 {[%emt 0:00:55][%cal Bh5h6,Bh6h7][%mdl 32]} Rg8 {[%emt 0:00:00]} 75. h7 {[%emt 0:00:57]} Rh8 {[%emt 0:00:00]} 76. Kg4 {[%emt 0:00:20]} Kf6 {[%emt 0:00:00]} 77. Rh6+ {[%emt 0:00:46]} Kg7 {[%emt 0:00:00]} 78. Kg5 {[%emt 0:00:16]} Kf7 {[%emt 0:00:00]} 79. Ra6 {[%emt 0:00:48] Weighted Error Value: White=0.19 (very precise) /Black=0.23 (precise)} 1-0

[Event "FRA-ch Teams Top 16-Bas 2022"]
[Site "Chartres"]
[Date "2022.06.18"]
[Round "10.5"]
[White "Shirazi, Kamran"]
[Black "Rouler, Charly"]
[Result "1-0"]
[ECO "D01"]
[WhiteElo "2313"]
[BlackElo "2345"]
[Annotator "TA"]
[PlyCount "47"]
[EventDate "2022.06.16"]
[EventType "team-tourn"]
[EventCountry "FRA"]
[SourceTitle "playchess.com"]
[Source "ChessBase"]
[SourceQuality "1"]
[TimeControl "40/5400+30:1800+30"]

{[%evp 9,47,-15,0,0,0,0,0,0,0,0,19,21,19,13,15,3,38,5,1,0,0,-5,78,47,48,43,78,83,125,121,128,120,144,137,187,93,108,101,456,477]} 1. d4 {[%emt 0:02:23]} Nf6 {[%emt 0:00:04]} 2. Nc3 {[%emt 0:00:06]} d5 {[%emt 0:00:09]} 3. Bg5 {[%emt 0:00:10]} Nbd7 {[%emt 0:00:32]} 4. a3 {[%emt 0:00:20]} e6 {[%emt 0:06:04]} 5. e4 {[%emt 0:01:56]} dxe4 {[%emt 0:00:02]} 6. Nxe4 {[%emt 0:00:08] D01: Veresov Opening.} Be7 {[%emt 0:00:10]} 7. Nxf6+ {[%emt 0:01:51]} Bxf6 {[%emt 0:01:01]} 8. Bxf6 {[%emt 0:02:02] The position is equal.} Qxf6 {[%emt 0:01:00]} 9. Nf3 {[%emt 0:01:28]} c5 {[%emt 0:01:02]} 10. Qd2 {[%emt 0:01:10] [#]} cxd4 $146 {[%emt 0:04:17]} ({Predecessor:} 10... O-O 11. O-O-O cxd4 12. Qxd4 Qxd4 13. Rxd4 Nc5 14. Bc4 b6 15. b4 Na4 16. Bb3 Nc3 {½-½ (53) Schinzel,W (2370)-Pinkas,K (2330) Bydgoszcz 1976}) 11. Nxd4 {[%emt 0:00:17]} O-O {[%emt 0:01:55]} 12. O-O-O {[%emt 0:00:24]} a6 {[%emt 0:07:05]} 13. g3 {[%emt 0:02:58]} Nc5 {[%emt 0:11:45] Strongly threatening ...Ne4.} 14. Bg2 {[%emt 0:33:34] Prevents Ne4.} e5 {[%emt 0:11:10]} 15. Qb4 {[%emt 0:01:32]} Qe7 {[%emt 0:17:32]} (15... Bg4 $11 16. f3 exd4 17. fxg4 d3) 16. Nb3 {[%emt 0:07:16]} Nxb3+ {[%emt 0:04:42]} 17. Qxb3 {[%emt 0:00:04]} Rb8 {[%emt 0:00:50]} 18. Rhe1 {[%emt 0:02:06]} Bg4 {[%emt 0:07:13]} 19. Rd5 {[%emt 0:08:28][%cal Bd1d5,Bd5e5,Be5e7][%mdl 32]} Qg5+ {[%emt 0:06:47]} 20. f4 $1 {[%emt 0:00:13]} Qh6 {[%emt 0:00:53] White must now prevent ...Be6.} 21. Rdxe5 {[%emt 0:00:12]} Qxh2 {[%emt 0:02:30] [#]} (21... Qf6 $16 {keeps fighting.} 22. Bd5 (22. Bxb7 Bc8 $16) 22... b5) 22. Be4 {[%emt 0:00:10]} (22. Bd5 $1 $18 {and White stays clearly on top.}) 22... Qf2 $16 {[%emt 0:01:38][%cal Rf2e1] [#]} 23. Bd5 $1 {[%emt 0:05:20][%cal Od5f7] Active counter play!} ({Of course not} 23. Qe3 Qxe3+ 24. Rxe3 Rfd8 $11) 23... g6 $2 {[%emt 0:02:23][%mdl 8192]} (23... h6 $16) 24. Re7 {[%emt 0:01:55] Weighted Error Value: White=0.11 (very precise) /Black=0.42} 1-0

[Event "FRA-ch Teams Top 16-Bas 2022"]
[Site "Chartres"]
[Date "2022.06.18"]
[Round "10.6"]
[White "Brailly-Vignal, Bastien"]
[Black "Mekhane, Adam"]
[Result "0-1"]
[ECO "E32"]
[WhiteElo "2372"]
[BlackElo "2276"]
[Annotator "TA"]
[PlyCount "80"]
[EventDate "2022.06.16"]
[EventType "team-tourn"]
[EventCountry "FRA"]
[SourceTitle "playchess.com"]
[Source "ChessBase"]
[SourceQuality "1"]
[TimeControl "40/5400+30:1800+30"]

{[%evp 14,80,-2,0,-5,-4,-8,4,1,-10,-12,-10,16,12,20,17,20,0,0,2,29,39,47,40,25,31,31,0,0,-77,-57,-93,-19,-28,-45,-18,0,-75,-74,-199,-197,-335,-142,-149,0,0,210,-95,-13,-159,-163,-432,-379,-451,-396,-1336,-1337,-2791,-2157,-5335,-4682,-29988,-29978,-29978,-29979,-29974,-29975,-5143,-4929]} 1. d4 {[%emt 0:00:03]} Nf6 {[%emt 0:00:21]} 2. c4 {[%emt 0:00:04]} e6 {[%emt 0:00:09]} 3. Nc3 {[%emt 0:00:09]} Bb4 {[%emt 0:00:15]} 4. Qc2 {[%emt 0:00:09]} b6 {[%emt 0:00:42]} 5. a3 {[%emt 0:00:18]} Bxc3+ {[%emt 0:00:29]} 6. Qxc3 {[%emt 0:00:04]} Bb7 {[%emt 0:00:16]} 7. Bg5 {[%emt 0:00:24][%cal Bc1g5,Bg5h4,Bh4g3][%mdl 32]} h6 {[%emt 0:00:45]} 8. Bh4 {[%emt 0:00:17]} g5 $1 {[%emt 0:06:35] 8...g5 scores better than 8...d6. E32: Nimzo-Indian: Classical (4 Qc2): 4...0-0.} 9. Bg3 {[%emt 0:00:07]} Ne4 {[%emt 0:00:11]} 10. Qc2 {[%emt 0:00:12]} d6 {[%emt 0:03:07] The position is equal. 10...c5 is not played anymore.} 11. e3 {[%emt 0:00:31]} Nd7 {[%emt 0:04:03]} 12. Ne2 {[%emt 0:00:10][%cal Od4d5]} f5 {[%emt 0:03:58]} 13. f3 {[%emt 0:01:19]} Nxg3 {[%emt 0:00:20]} 14. hxg3 {[%emt 0:00:09][%cal Od4d5]} Qf6 {[%emt 0:07:25]} 15. Qa4 {[%emt 0:03:45] [#]} h5 $146 {[%emt 0:15:11]} ({Predecessor:} 15... a6 16. O-O-O O-O-O 17. Nc3 e5 18. Nd5 Qf7 19. Nb4 Nb8 20. Bd3 f4 21. dxe5 dxe5 {0-1 (60) Bellaiche,A (2485)-Bologan,V (2600) Moscow 2018}) 16. O-O-O {[%emt 0:03:22]} a5 {[%emt 0:15:09]} 17. Nc3 {[%emt 0:10:15][%cal Oc4c5]} Ke7 {[%emt 0:05:04]} 18. Kb1 {[%emt 0:06:04]} h4 {[%emt 0:03:50]} 19. gxh4 {[%emt 0:01:50]} Rxh4 {[%emt 0:00:21]} 20. Rxh4 {[%emt 0:06:36]} gxh4 {[%emt 0:00:01]} 21. e4 {[%emt 0:17:46]} (21. d5 $11) 21... fxe4 $17 {[%emt 0:06:47]} 22. fxe4 {[%emt 0:01:15][%cal Oe4e5]} Qg6 {[%emt 0:01:39]} ({Better is} 22... Qf2 $1 $17) 23. Ka1 $11 {[%emt 0:04:16][%cal Oe4e5]} Rf8 {[%emt 0:02:19]} 24. c5 {[%emt 0:04:37]} bxc5 {[%emt 0:05:31]} 25. Qxa5 {[%emt 0:03:08]} (25. d5 $1 $11 Nb6 26. Qxa5) 25... cxd4 $17 {[%emt 0:02:55]} (25... Bxe4 $2 26. dxc5 d5 27. Bb5 $18 (27. Qxc7 Qg3 $18) (27. Nxe4 Qxe4 28. Qxc7 Qe5 $16)) 26. Nb5 {[%emt 0:06:09]} (26. Qxc7 $17 {was the only chance.} Rxf1 27. Rxf1 dxc3 28. Qxb7 Qxg2 29. Rc1) 26... Qxe4 $19 {[%emt 0:01:31]} 27. Nxd4 {[%emt 0:09:08]} (27. Qxc7 $142 Qc6 28. Qxc6 Bxc6 29. Nxd4) 27... Bd5 {[%emt 0:02:48]} (27... Rxf1 28. Rxf1 Qxd4 29. Qg5+ Nf6 30. Qg7+ Ke8 31. Qh8+ (31. Rxf6 Qd1+ 32. Ka2 Bd5+ 33. b3 Qxb3+ 34. Ka1 Qa2#) 31... Ke7 32. Qg7+ Ke8 33. Qh8+ (33. Rxf6 Qd1+ 34. Ka2 Bd5+ 35. b3 Qxb3+ 36. Ka1 Qa2#) 33... Ke7 34. Qg7+ $11) (27... c5 $19 {and Black stays clearly on top.} 28. Nf3 Bd5) 28. Be2 $17 {[%emt 0:10:31]} Qxg2 {[%emt 0:07:59]} (28... c5 $1 $17 {[%cal Rc5d4]} 29. Bf3 Rxf3 30. gxf3 Qf4) 29. Qxc7 $11 {[%emt 0:00:27] Threatens to win with Bb5.} Rb8 {[%emt 0:00:41] [#]} (29... Ra8 $11) 30. Qc1 $2 {[%emt 0:04:09] [#]} ({Avoid the trap} 30. Rf1 $2 h3 31. Re1 (31. a4 $2 h2 $19) 31... Qf2 $19) (30. Nc6+ $1 $18 {[%mdl 512]} Bxc6 31. Qxd6+ Kf7 32. Rf1+ Kg7 33. Qxe6) 30... Rg8 {[%emt 0:02:41]} ({Much weaker is} 30... Nc5 $6 31. Qh6 Rg8 32. Qxh4+ Qg5 33. Qh2 $11) ({Black should play} 30... h3 $1 $17 {[%cal Rh3h2] White must now prevent ...h2.} 31. Bf1 Qg3) 31. Bf1 {[%emt 0:02:20] [#]} (31. Qh6 $1 $11 {remains equal.}) 31... Qf2 $1 $36 {[%emt 0:00:51][%mdl 2048] ...Rg1 is the strong threat. White is under strong pressure. Black is more active.} 32. Qh6 $2 {[%emt 0:05:58]} (32. Bc4 {was called for.} Rc8 33. Qg5+ Qf6 34. Qxf6+ Nxf6 35. Bxd5 Nxd5 36. Re1) 32... Qf6 {[%emt 0:00:59]} 33. Qd2 {[%emt 0:00:29]} Rg3 {[%emt 0:01:05]} 34. Re1 $2 {[%emt 0:00:56]} (34. Qc2 Rg1 35. Nc6+ Bxc6 36. Qxc6) 34... Rg1 {[%emt 0:00:24]} 35. Qd3 {[%emt 0:00:32]} Nc5 {[%emt 0:00:38][%cal Bd7c5,Bc5b3,Bb3d4,Bd4f5][%mdl 32]} 36. Nf5+ {[%emt 0:00:01]} Kd8 {[%emt 0:00:45]} 37. Qe3 {[%emt 0:00:48]} Nb3+ {[%emt 0:00:18]} 38. Ka2 {[%emt 0:00:21]} Nd4+ {[%emt 0:00:26]} 39. b3 {[%emt 0:00:39]} Bxb3+ {[%emt 0:00:23]} 40. Kb2 {[%emt 0:00:34]} Nxf5+ {[%emt 0:00:24] Weighted Error Value: White=1.01/Black=0.47} 0-1

[Event "FRA-ch Teams Top 16-Bas 2022"]
[Site "Chartres"]
[Date "2022.06.18"]
[Round "10.7"]
[White "Kuhn, Clement"]
[Black "Jrade, Willis"]
[Result "0-1"]
[ECO "D91"]
[WhiteElo "2280"]
[BlackElo "2129"]
[Annotator "TA"]
[PlyCount "124"]
[EventDate "2022.06.16"]
[EventType "team-tourn"]
[EventCountry "FRA"]
[SourceTitle "playchess.com"]
[Source "ChessBase"]
[SourceQuality "1"]
[TimeControl "40/5400+30:1800+30"]

{[%evp 10,124,7,10,32,-1,-1,-4,13,-1,1,-14,18,17,20,12,20,23,38,51,42,14,54,41,36,-2,-11,0,0,0,0,-7,-6,-22,-7,-27,0,0,69,25,76,57,87,76,46,-24,-8,-38,0,0,0,0,0,-46,-13,-8,-13,-5,-9,-8,0,0,293,340,320,327,273,-33,-49,-47,-35,-46,-12,-237,-235,-320,-304,-319,-336,-335,-322,-352,-165,-197,-181,-144,-138,-329,-297,-29970,-29974,-29972,-29973,-29979,-29973,-29973,-29974,-29976,-29974,-29970,-29971,-29977,-29965,-29972,-29969,-29970,-29971,-29976,-29977,-29984,-29985,-29987,-29987,-29993,-29991,-29996,-29992]} 1. d4 {[%emt 0:00:11]} Nf6 {[%emt 0:00:31]} 2. c4 {[%emt 0:00:49]} g6 {[%emt 0:00:38]} 3. Nc3 {[%emt 0:00:41]} d5 {[%emt 0:00:02]} 4. Nf3 {[%emt 0:00:44]} Bg7 {[%emt 0:00:28]} 5. Bg5 {[%emt 0:00:02]} Ne4 {[%emt 0:00:12]} 6. Bf4 {[%emt 0:00:02]} ({Avoid the trap} 6. Nxd5 $2 Nxg5 7. Nxg5 e6 8. Nxc7+ (8. Qa4+ $2 c6 $19) 8... Qxc7 $19) 6... O-O {[%emt 0:03:30] D91: Grünfeld: 4 Nf3 Bg7 5 Bg5.} 7. cxd5 {[%emt 0:09:34]} Nxc3 {[%emt 0:00:56]} 8. bxc3 {[%emt 0:00:01]} Qxd5 {[%emt 0:00:12] The position is equal.} 9. e3 {[%emt 0:01:59]} Qa5 {[%emt 0:01:16]} 10. Qb3 {[%emt 0:13:31] [#]} Be6 $146 {[%emt 0:01:17]} ({Predecessor:} 10... c5 11. Bc4 cxd4 12. exd4 Nc6 13. O-O Qf5 14. Bc7 Qd7 15. Be5 Na5 16. Qb4 Nxc4 17. Bxg7 Kxg7 18. Qxc4 {1-0 (70) Cori Tello,D (2431)-Mekhitarian,K (2572) Montevideo 2015}) 11. Bc4 {[%emt 0:05:02]} Bxc4 {[%emt 0:07:16]} 12. Qxc4 {[%emt 0:02:31]} c5 {[%emt 0:00:46]} 13. O-O $1 {[%emt 0:00:39]} Nc6 {[%emt 0:13:18]} 14. d5 {[%emt 0:08:56][%cal Bd4d5,Bd5d6][%mdl 32]} Nb8 {[%emt 0:06:10]} 15. Rab1 {[%emt 0:03:30]} b6 {[%emt 0:00:59][%cal Bb7b6,Bb6b5][%mdl 32]} 16. d6 {[%emt 0:04:08]} e6 {[%emt 0:12:45]} (16... Nc6 $2 17. Qe4 $18) 17. Ne5 {[%emt 0:10:42]} (17. Be5 $5 {[%cal Re5g7]}) 17... Bxe5 {[%emt 0:02:48]} 18. Bxe5 {[%emt 0:00:01]} Nd7 {[%emt 0:00:12]} 19. Bg3 {[%emt 0:00:09][%cal Be5g3,Bg3h4,Bh4e7][%mdl 32]} a6 {[%emt 0:04:56]} 20. Bh4 {[%emt 0:05:25]} b5 {[%emt 0:02:37]} 21. Qe4 {[%emt 0:04:15]} Ra7 {[%emt 0:01:02] Prevents Qb7.} 22. Be7 {[%emt 0:05:06]} Rc8 {[%emt 0:01:12]} 23. Qc2 {[%emt 0:02:01]} Ne5 {[%emt 0:13:29]} (23... Rb7 $11) 24. Rbd1 {[%emt 0:02:49]} Rd7 {[%emt 0:01:34]} (24... c4 $11 {remains equal.}) 25. Qe4 {[%emt 0:02:15]} Nc4 {[%emt 0:02:58]} (25... Qxc3 $2 26. Bf6 c4 27. Bxe5 $18) 26. Qf4 $1 {[%emt 0:01:35] Bf6 is the strong threat.} f5 {[%emt 0:02:26]} (26... Qxc3 $2 27. Bf6 Qb2 28. a4 $18) 27. h4 {[%emt 0:03:42]} ({Better is} 27. e4 $14) 27... Qxc3 $11 {[%emt 0:02:20]} 28. h5 {[%emt 0:02:13]} Qg7 {[%emt 0:01:24]} (28... Qe5 $5 {[%cal Re5f4]} 29. Qh4 Qg7 $11) 29. e4 {[%emt 0:02:47]} Qe5 {[%emt 0:06:39]} 30. Qh6 {[%emt 0:02:11]} Qg7 {[%emt 0:01:13]} 31. Qg5 {[%emt 0:04:02]} (31. Qf4 $1 $11) 31... gxh5 {[%emt 0:05:00]} 32. Qxh5 {[%emt 0:00:17]} Qg6 {[%emt 0:00:24]} 33. Qh4 {[%emt 0:00:19]} fxe4 {[%emt 0:00:47] Strongly threatening ...Ne5.} 34. Rfe1 {[%emt 0:00:25]} e3 {[%emt 0:00:40]} 35. fxe3 {[%emt 0:00:39]} h5 $2 {[%emt 0:03:10][%mdl 8192] [#]} (35... h6 $11) 36. e4 $1 $18 {[%emt 0:00:18] aiming for Rd3.} Kh7 {[%emt 0:00:38]} 37. Rd3 {[%emt 0:01:16] And now Rg3 would win.} Rg8 {[%emt 0:00:16][%csl Gg8][%cal Rg6g2]} 38. Re2 {[%emt 0:04:43]} (38. Qh2 $18) 38... Qg4 $1 $40 {[%emt 0:01:35][%mdl 128] Black has some attack.} 39. Qxg4 {[%emt 0:00:00]} hxg4 {[%emt 0:01:27][%cal Bh5g4,Bg4g3][%mdl 32]} 40. Rd1 {[%emt 0:00:26]} Ne5 {[%emt 0:00:46] White must now prevent ...g3.} 41. Kh2 {[%emt 0:12:26]} (41. Bf6 $11 {and White is okay.} Nc6 42. e5) 41... g3+ $19 {[%emt 0:08:17]} 42. Kg1 {[%emt 0:00:40]} Nc6 {[%emt 0:05:27]} 43. Bf6 {[%emt 0:10:17]} e5 {[%emt 0:00:44]} 44. Re3 {[%emt 0:01:52]} Rg6 {[%emt 0:06:41]} 45. Rf3 {[%emt 0:00:13]} Nd4 {[%emt 0:02:50]} (45... c4 $142 {Threatens to win with ...b4.} 46. Rd5 b4) 46. Bxe5 {[%emt 0:00:02]} Nxf3+ {[%emt 0:04:39]} 47. gxf3 {[%emt 0:00:00][%mdl 4096] Endgame [#] KRR-KRB} g2 $1 {[%emt 0:00:01]} 48. Bh2 $2 {[%emt 0:00:53] Now White is beyond hope.} (48. Rd5 $17) 48... Kg7 {[%emt 0:02:29]} 49. f4 $2 {[%emt 0:00:10]} (49. Rd5 $19 c4 50. Rc5) 49... Rgxd6 {[%emt 0:00:17] Black mates.} 50. Rxd6 {[%emt 0:00:29]} Rxd6 {[%emt 0:00:01] KR-KB} 51. f5 {[%emt 0:00:17]} Rd2 {[%emt 0:00:39]} 52. e5 {[%emt 0:00:02]} c4 {[%emt 0:00:42]} 53. e6 {[%emt 0:00:05]} Kf6 {[%emt 0:00:26]} 54. Be5+ {[%emt 0:00:41]} Ke7 {[%emt 0:04:28]} ({Not} 54... Kxe5 55. e7 Rxa2 56. e8=Q+ Kxf5 57. Qe3 $16) 55. Bc3 {[%emt 0:01:03]} Re2 {[%emt 0:00:00]} 56. a3 {[%emt 0:00:16]} Rc2 {[%emt 0:00:00]} 57. Bd4 {[%emt 0:01:19]} a5 {[%emt 0:00:00]} 58. Be3 {[%emt 0:00:11]} Kf6 {[%emt 0:00:00]} 59. Kh2 {[%emt 0:02:03]} Re2 {[%emt 0:00:07]} 60. Bb6 {[%emt 0:02:41]} Kxf5 {[%emt 0:00:20]} 61. Bxa5 {[%emt 0:00:06]} Kxe6 {[%emt 0:00:06]} 62. Kh3 {[%emt 0:05:48]} Ke5 {Weighted Error Value: White=0.43/Black=0.22 (precise)} 0-1

[Event "FRA-ch Teams Top 16-Bas 2022"]
[Site "Chartres"]
[Date "2022.06.18"]
[Round "10.8"]
[White "Djidjeli, Sarah"]
[Black "Hernandez, Lara"]
[Result "1-0"]
[ECO "C84"]
[WhiteElo "2040"]
[BlackElo "1965"]
[Annotator "NA RC"]
[PlyCount "61"]
[EventDate "2022.06.16"]
[EventType "team-tourn"]
[EventCountry "FRA"]
[SourceTitle "playchess.com"]
[Source "ChessBase"]
[SourceQuality "1"]
[TimeControl "40/5400+30:1800+30"]

1. e4 {[%emt 0:00:01]} e5 {[%emt 0:00:25]} 2. Nf3 {[%emt 0:00:04]} Nc6 {[%emt 0:00:04]} 3. Bb5 {[%emt 0:00:05]} a6 {[%emt 0:00:03]} 4. Ba4 {[%emt 0:00:07]} Nf6 {[%emt 0:00:05]} 5. O-O {[%emt 0:00:11]} Be7 {[%emt 0:00:14]} 6. d3 {[%emt 0:00:15]} b5 {[%emt 0:00:09]} 7. Bb3 {[%emt 0:00:05]} d6 {[%emt 0:02:29]} 8. a4 {[%emt 0:00:51]} b4 {[%emt 0:03:20]} 9. c3 {[%emt 0:08:26]} O-O {[%emt 0:04:47]} 10. Bg5 {[%emt 0:07:23]} Rb8 {[%emt 0:06:34]} 11. Nbd2 {[%emt 0:04:49]} Be6 {[%emt 0:15:34]} 12. Bc4 {[%emt 0:17:01]} Qc8 {[%emt 0:04:28]} 13. Qe2 {[%emt 0:06:07]} Na5 {[%emt 0:11:13]} 14. Bxe6 {[%emt 0:05:36]} Qxe6 {[%emt 0:07:01]} 15. d4 {[%emt 0:03:03]} bxc3 {[%emt 0:01:25]} 16. bxc3 {[%emt 0:00:30]} Rb6 {[%emt 0:02:14]} 17. d5 {[%emt 0:07:40]} Qc8 {[%emt 0:04:41]} 18. Nh4 {[%emt 0:07:10]} Nxd5 {[%emt 0:02:59]} 19. Bxe7 {[%emt 0:03:16]} Nxe7 {[%emt 0:00:56]} 20. c4 {[%emt 0:00:25]} c5 {[%emt 0:02:57]} 21. Ra3 {[%emt 0:02:45]} Nac6 {[%emt 0:01:26]} 22. Rh3 {[%emt 0:03:42]} Ng6 {[%emt 0:08:19]} 23. Nxg6 {[%emt 0:06:56]} fxg6 {[%emt 0:00:25]} 24. Nf3 {[%emt 0:00:18]} Nd4 {[%emt 0:00:27]} 25. Nxd4 {[%emt 0:00:31]} cxd4 {[%emt 0:01:12]} 26. Qa2 {[%emt 0:02:53]} Qe6 {[%emt 0:02:20]} 27. Rc1 {[%emt 0:02:06]} Rfb8 {[%emt 0:01:28]} 28. Rf3 {[%emt 0:01:41]} Rb2 {[%emt 0:01:25]} 29. Qa1 {[%emt 0:00:12]} Qxc4 {[%emt 0:01:39]} 30. Rxc4 {[%emt 0:00:11]} Rb1+ {[%emt 0:00:02]} 31. Rc1 {[%emt 0:00:04]} 1-0